[Event "1st Cyprus Chess Tournament 2019"]
[Site "Larnaca"]
[Date "2019.10.27"]
[Round "4.3"]
[White "Tilicheev, Viacheslav"]
[Black "Ulybin, Mikhail"]
[Result "1-0"]
[ECO "C06"]
[WhiteElo "2478"]
[BlackElo "2455"]
[Annotator "ChessBase"]
[PlyCount "127"]
[EventDate "2019.10.25"]
[EventType "swiss"]
[EventCountry "CYP"]
[SourceTitle "playchess.com"]
[Source "ChessBase"]
[SourceQuality "1"]
[TimeControl "5400+30"]

1. e4 {[%emt 0:00:00]} e6 {[%emt 0:00:59]} 2. d4 {[%emt 0:00:00]} d5 {[%emt 0:00:40]} 3. Nd2 {[%emt 0:00:00]} Nf6 {[%emt 0:02:37]} 4. e5 {[%emt 0:00:54]} Nfd7 {[%emt 0:00:40]} 5. Bd3 {[%emt 0:00:14]} c5 {[%emt 0:01:31]} 6. c3 {[%emt 0:00:08]} Nc6 {[%emt 0:01:59]} 7. Ndf3 {[%emt 0:00:09]} cxd4 {[%emt 0:07:04]} 8. cxd4 {[%emt 0:00:10]} f6 {[%emt 0:00:53]} 9. exf6 {[%emt 0:00:08]} Nxf6 {[%emt 0:01:55]} 10. Nh3 {[%emt 0:00:11]} Bb4+ {[%emt 0:05:49]} 11. Bd2 {[%emt 0:00:39]} Qa5 {[%emt 0:09:48]} 12. a3 {[%emt 0:04:24]} Bxd2+ {[%emt 0:00:31]} 13. Qxd2 {[%emt 0:00:07]} Qxd2+ {[%emt 0:01:42]} 14. Kxd2 {[%emt 0:00:08]} O-O {[%emt 0:20:46]} 15. Rhe1 {[%emt 0:02:34]} e5 {[%emt 0:14:26]} 16. dxe5 {[%emt 0:00:31]} Bxh3 {[%emt 0:09:09]} 17. exf6 {[%emt 0:03:49]} Bxg2 {[%emt 0:05:20]} 18. Rg1 {[%emt 0:04:05]} Rxf6 {[%emt 0:00:34]} 19. Bxh7+ {[%emt 0:00:09]} Kxh7 {[%emt 0:05:32]} 20. Ng5+ {[%emt 0:00:13]} Kh6 {[%emt 0:00:55]} 21. Rxg2 {[%emt 0:00:15]} Raf8 {[%emt 0:00:57]} 22. Rf1 {[%emt 0:02:32]} Ne5 {[%emt 0:02:15]} 23. Kc3 {[%emt 0:02:47]} Rc8+ {[%emt 0:03:00]} 24. Kd4 {[%emt 0:00:27]} Ng6 {[%emt 0:01:03]} 25. f3 {[%emt 0:06:33]} Nh4 {[%emt 0:01:27]} 26. Rgg1 {[%emt 0:00:42]} Rc2 {[%emt 0:00:45]} 27. f4 {[%emt 0:00:57]} Nf5+ {[%emt 0:00:31]} 28. Kd3 {[%emt 0:00:35]} Rxb2 {[%emt 0:00:18]} 29. Rb1 {[%emt 0:00:16]} Rfb6 {[%emt 0:00:44]} 30. Nf7+ {[%emt 0:00:54]} Kh7 {[%emt 0:00:04]} 31. Ng5+ {[%emt 0:00:11]} Kh6 {[%emt 0:00:32]} 32. Nf7+ {[%emt 0:00:04]} Kh7 {[%emt 0:00:09]} 33. Ng5+ {[%emt 0:00:45]} Kg6 {[%emt 0:00:49]} 34. Nf3+ {[%emt 0:02:27]} Kf6 {[%emt 0:00:24]} 35. Rxb2 {[%emt 0:00:03]} Rxb2 {[%emt 0:00:09]} 36. Ne5 {[%emt 0:00:03]} Rb3+ {[%emt 0:01:14]} 37. Kd2 {[%emt 0:00:05]} Nd4 {[%emt 0:00:45]} 38. Rg6+ {[%emt 0:00:12]} Kf5 {[%emt 0:00:16]} 39. Rxg7 {[%emt 0:00:04]} Ne6 {[%emt 0:00:41]} 40. Rf7+ {[%emt 0:02:20]} Ke4 {[%emt 0:00:04]} 41. Re7 {[%emt 0:00:16]} Kf5 {[%emt 0:00:51]} 42. Rf7+ {[%emt 0:00:03]} Ke4 {[%emt 0:00:10]} 43. Re7 {[%emt 0:00:03]} Rb2+ {[%emt 0:00:29]} 44. Kc3 {[%emt 0:01:05]} Rb6 {[%emt 0:00:06]} 45. Nd3 {[%emt 0:00:21]} d4+ {[%emt 0:01:20]} 46. Kd2 {[%emt 0:00:10]} Kf5 {[%emt 0:00:28]} 47. Rf7+ {[%emt 0:00:34]} Ke4 {[%emt 0:00:24]} 48. Rf6 {[%emt 0:00:31]} Ng7 {[%emt 0:00:30]} 49. Nc5+ {[%emt 0:01:17]} Kd5 {[%emt 0:00:27]} 50. Rxb6 {[%emt 0:00:05]} axb6 {[%emt 0:00:08]} 51. Nxb7 {[%emt 0:00:13]} Ne6 {[%emt 0:01:01]} 52. f5 {[%emt 0:00:12]} Nf4 {[%emt 0:00:27]} 53. Nd8 {[%emt 0:00:49]} Ke5 {[%emt 0:00:27]} 54. f6 {[%emt 0:00:41]} Kxf6 {[%emt 0:00:11]} 55. Nc6 {[%emt 0:00:03]} Kf5 {[%emt 0:00:22]} 56. Nxd4+ {[%emt 0:00:05]} Kg4 {[%emt 0:01:04]} 57. Ne2 {[%emt 0:02:07]} Nd5 {[%emt 0:00:33]} 58. Ng1 {[%emt 0:00:06]} b5 {[%emt 0:00:19]} 59. Kd3 {[%emt 0:00:47]} b4 {[%emt 0:00:37]} 60. a4 {[%emt 0:00:24]} b3 {[%emt 0:00:26]} 61. a5 {[%emt 0:00:57]} Kh4 {[%emt 0:00:41]} 62. Kd2 {[%emt 0:01:41]} Kg4 {[%emt 0:00:27]} 63. Kc1 {[%emt 0:00:42]} Ne3 {[%emt 0:00:26]} 64. a6 {[%emt 0:00:57]} 1-0

[Event "1st Cyprus Chess Tournament 2019"]
[Site "Larnaca"]
[Date "2019.10.27"]
[Round "4.4"]
[White "Velickovski-Nejkovic, Maja"]
[Black "Kazakouski, Valery"]
[Result "0-1"]
[ECO "A25"]
[WhiteElo "2128"]
[BlackElo "2474"]
[Annotator "RC"]
[PlyCount "90"]
[EventDate "2019.10.25"]
[EventType "swiss"]
[EventCountry "CYP"]
[SourceTitle "playchess.com"]
[Source "ChessBase"]
[SourceQuality "1"]
[TimeControl "5400+30"]

1. c4 {[%emt 0:00:00]} e5 {[%emt 0:00:00]} 2. Nc3 {[%emt 0:00:00]} Nc6 {[%emt 0:00:00]} 3. g3 {[%emt 0:00:13]} f5 {[%emt 0:00:05]} 4. d3 {[%emt 0:00:17]} Nf6 {[%emt 0:00:11]} 5. Bg2 {[%emt 0:00:07]} Bb4 {[%emt 0:00:10]} 6. Bd2 {[%emt 0:00:14]} d6 {[%emt 0:00:19]} 7. Nd5 {[%emt 0:03:18]} Bxd2+ {[%emt 0:02:34]} 8. Qxd2 {[%emt 0:00:07]} O-O {[%emt 0:00:08]} 9. f4 {[%emt 0:03:28]} Kh8 {[%emt 0:04:16]} 10. Nh3 {[%emt 0:01:35]} Be6 {[%emt 0:04:31]} 11. Nxf6 {[%emt 0:00:28]} Rxf6 {[%emt 0:01:44]} 12. b4 {[%emt 0:04:45]} a6 {[%emt 0:06:23]} 13. O-O {[%emt 0:00:58]} Qd7 {[%emt 0:02:28]} 14. a4 {[%emt 0:00:47]} Re8 {[%emt 0:13:10]} 15. b5 {[%emt 0:00:48]} axb5 {[%emt 0:00:16]} 16. axb5 {[%emt 0:00:08]} Nd8 {[%emt 0:00:05]} 17. Ra8 {[%emt 0:05:03]} Rff8 {[%emt 0:05:05]} 18. Qb2 {[%emt 0:03:27]} Bg8 {[%emt 0:02:11]} 19. Ra7 {[%emt 0:01:12]} b6 {[%emt 0:09:48]} 20. Ng5 {[%emt 0:01:57]} Qe7 {[%emt 0:03:27]} 21. e4 {[%emt 0:01:50]} exf4 {[%emt 0:04:16]} 22. gxf4 {[%emt 0:02:08]} h6 {[%emt 0:00:51]} 23. Nh3 {[%emt 0:01:56]} fxe4 {[%emt 0:05:39]} 24. Bxe4 {[%emt 0:02:45]} d5 {[%emt 0:07:03]} 25. cxd5 {[%emt 0:01:58]} Qc5+ {[%emt 0:05:05]} 26. Kg2 {[%emt 0:06:11]} Bxd5 {[%emt 0:01:48]} 27. Rc1 {[%emt 0:02:53]} Bxe4+ {[%emt 0:03:04]} 28. dxe4 {[%emt 0:00:12]} Qe7 {[%emt 0:01:03]} 29. Rc4 {[%emt 0:02:08]} Qe6 {[%emt 0:04:41]} 30. Qe2 {[%emt 0:06:37]} Rf7 {[%emt 0:04:41]} 31. Kg3 {[%emt 0:15:53]} c5 {[%emt 0:01:13]} 32. Ra6 {[%emt 0:05:04]} Nb7 {[%emt 0:00:29]} 33. Rca4 {[%emt 0:01:06]} Nd6 {[%emt 0:01:07]} 34. e5 {[%emt 0:08:10]} Nf5+ {[%emt 0:01:42]} 35. Kg2 {[%emt 0:03:14]} Nd4 {[%emt 0:01:36]} 36. Qh5 {[%emt 0:01:28]} Qd5+ {[%emt 0:00:56]} 37. Kg1 {[%emt 0:01:23]} Nf3+ {[%emt 0:00:45]} 38. Kf2 {[%emt 0:00:58]} Qd2+ {[%emt 0:02:04]} 39. Kg3 {[%emt 0:02:32]} Qe1+ {[%emt 0:00:53]} 40. Nf2 {[%emt 0:00:42]} Nxe5 {[%emt 0:01:27]} 41. Re4 {[%emt 0:02:48]} Qg1+ {[%emt 0:00:17]} 42. Kh3 {[%emt 0:00:32]} Qf1+ {[%emt 0:00:16]} 43. Kg3 {[%emt 0:00:15]} Qg1+ {[%emt 0:00:01]} 44. Kh3 {[%emt 0:00:07]} Qxf2 {[%emt 0:00:13]} 45. Rxe5 {[%emt 0:00:32]} Qf1+ {[%emt 0:00:27]} 0-1

[Event "1st Cyprus Chess Tournament 2019"]
[Site "Larnaca"]
[Date "2019.10.27"]
[Round "4.5"]
[White "Demirciler, Erhan"]
[Black "Sumets, Andrey"]
[Result "0-1"]
[ECO "B52"]
[WhiteElo "1740"]
[BlackElo "2570"]
[Annotator "ChessBase"]
[PlyCount "66"]
[EventDate "2019.10.25"]
[EventType "swiss"]
[EventCountry "CYP"]
[SourceTitle "playchess.com"]
[Source "ChessBase"]
[SourceQuality "1"]
[TimeControl "5400+30"]

1. e4 {[%emt 0:00:00]} c5 {[%emt 0:00:00]} 2. Nf3 {[%emt 0:00:00]} d6 {[%emt 0:00:00]} 3. c3 {[%emt 0:00:00]} Nf6 {[%emt 0:00:00]} 4. Bb5+ {[%emt 0:00:12]} Bd7 {[%emt 0:00:00]} 5. Bxd7+ {[%emt 0:00:28]} Qxd7 {[%emt 0:00:00]} 6. d3 {[%emt 0:00:55]} Nc6 {[%emt 0:00:57]} 7. O-O {[%emt 0:00:19]} e6 {[%emt 0:00:05]} 8. Re1 {[%emt 0:00:24]} Be7 {[%emt 0:00:05]} 9. Nbd2 {[%emt 0:04:25]} O-O {[%emt 0:00:53]} 10. Nf1 {[%emt 0:00:11]} Rfd8 {[%emt 0:02:30]} 11. Ng3 {[%emt 0:01:18]} Ne5 {[%emt 0:00:58]} 12. d4 {[%emt 0:02:49]} Nxf3+ {[%emt 0:00:10]} 13. Qxf3 {[%emt 0:00:06]} cxd4 {[%emt 0:00:07]} 14. cxd4 {[%emt 0:00:18]} Rac8 {[%emt 0:00:10]} 15. Qd3 {[%emt 0:13:41]} Qc6 {[%emt 0:01:06]} 16. Bd2 {[%emt 0:02:04]} Qc4 {[%emt 0:00:53]} 17. Qxc4 {[%emt 0:01:05]} Rxc4 {[%emt 0:00:07]} 18. Bc3 {[%emt 0:03:42]} d5 {[%emt 0:00:42]} 19. e5 {[%emt 0:00:38]} Nd7 {[%emt 0:00:05]} 20. Ne2 {[%emt 0:00:37]} Rdc8 {[%emt 0:00:27]} 21. Rec1 {[%emt 0:01:45]} f6 {[%emt 0:03:46]} 22. b3 {[%emt 0:04:13]} R4c6 {[%emt 0:00:07]} 23. Bb2 {[%emt 0:03:48]} Rc2 {[%emt 0:02:28]} 24. exf6 {[%emt 0:04:31]} Nxf6 {[%emt 0:03:22]} 25. Nf4 {[%emt 0:01:42]} Ne4 {[%emt 0:01:09]} 26. Nd3 {[%emt 0:01:28]} Bg5 {[%emt 0:01:34]} 27. f4 {[%emt 0:05:56]} Bf6 {[%emt 0:00:08]} 28. Kf1 {[%emt 0:07:17]} R8c6 {[%emt 0:01:15]} 29. Rd1 {[%emt 0:15:16]} Nd2+ {[%emt 0:01:35]} 30. Ke1 {[%emt 0:01:00]} Bh4+ {[%emt 0:00:26]} 31. g3 {[%emt 0:00:27]} Nf3+ {[%emt 0:00:09]} 32. Kf1 {[%emt 0:00:25]} Nxh2+ {[%emt 0:00:05]} 33. Kg1 {[%emt 0:01:10]} Nf3+ {[%emt 0:00:08]} 0-1

[Event "1st Cyprus Chess Tournament 2019"]
[Site "Larnaca"]
[Date "2019.10.27"]
[Round "4.6"]
[White "Ivanov, Mikhail M"]
[Black "Kochergin, Sergey"]
[Result "1/2-1/2"]
[ECO "D35"]
[WhiteElo "2342"]
[BlackElo "2224"]
[Annotator "NA"]
[PlyCount "53"]
[EventDate "2019.10.25"]
[EventType "swiss"]
[EventCountry "CYP"]
[SourceTitle "playchess.com"]
[Source "ChessBase"]
[SourceQuality "1"]
[TimeControl "5400+30"]

1. d4 {[%emt 0:00:00]} d5 {[%emt 0:00:00]} 2. c4 {[%emt 0:00:00]} e6 {[%emt 0:00:00]} 3. Nc3 {[%emt 0:00:12]} Nf6 {[%emt 0:00:00]} 4. cxd5 {[%emt 0:00:07]} exd5 {[%emt 0:00:00]} 5. Bg5 {[%emt 0:00:07]} Be7 {[%emt 0:00:20]} 6. e3 {[%emt 0:00:06]} O-O {[%emt 0:01:20]} 7. Bd3 {[%emt 0:00:05]} Nbd7 {[%emt 0:01:40]} 8. Qc2 {[%emt 0:02:04]} Re8 {[%emt 0:00:28]} 9. Nf3 {[%emt 0:00:49]} Nf8 {[%emt 0:00:23]} 10. h3 {[%emt 0:01:13]} g6 {[%emt 0:01:45]} 11. O-O-O {[%emt 0:09:42]} Ne6 {[%emt 0:00:42]} 12. Bh4 {[%emt 0:09:29]} Ng7 {[%emt 0:02:56]} 13. g4 {[%emt 0:00:57]} c6 {[%emt 0:00:23]} 14. Nd2 {[%emt 0:09:01]} b5 {[%emt 0:00:48]} 15. Kb1 {[%emt 0:00:43]} a5 {[%emt 0:01:39]} 16. Rde1 {[%emt 0:10:23]} a4 {[%emt 0:01:09]} 17. Ne2 {[%emt 0:05:01]} Bb7 {[%emt 0:03:11]} 18. f4 {[%emt 0:03:49]} Ne4 {[%emt 0:01:34]} 19. Bxe7 {[%emt 0:00:15]} Qxe7 {[%emt 0:00:09]} 20. Bxe4 {[%emt 0:01:02]} dxe4 {[%emt 0:00:04]} 21. Ng3 {[%emt 0:00:43]} Rac8 {[%emt 0:17:30]} 22. Rc1 {[%emt 0:20:09]} c5 {[%emt 0:02:07]} 23. dxc5 {[%emt 0:00:10]} Ne6 {[%emt 0:06:23]} 24. b4 {[%emt 0:00:25]} axb3 {[%emt 0:00:18]} 25. Nxb3 {[%emt 0:00:11]} Bd5 {[%emt 0:06:59]} 26. g5 {[%emt 0:08:00]} Bxb3 {[%emt 0:00:40]} 27. Qxb3 {[%emt 0:05:45]} 1/2-1/2

[Event "1st Cyprus Chess Tournament 2019"]
[Site "Larnaca"]
[Date "2019.10.27"]
[Round "4.7"]
[White "Dermatopoulos, Konstantinos"]
[Black "Cherkasov, Nikolai"]
[Result "1-0"]
[ECO "A36"]
[WhiteElo "1992"]
[BlackElo "2338"]
[Annotator "NA"]
[PlyCount "77"]
[EventDate "2019.10.25"]
[EventType "swiss"]
[EventCountry "CYP"]
[SourceTitle "playchess.com"]
[Source "ChessBase"]
[SourceQuality "1"]
[TimeControl "5400+30"]

1. c4 {[%emt 0:00:00]} g6 {[%emt 0:00:00]} 2. Nc3 {[%emt 0:00:00]} Bg7 {[%emt 0:00:06]} 3. e4 {[%emt 0:00:00]} d6 {[%emt 0:00:17]} 4. g3 {[%emt 0:00:01]} c5 {[%emt 0:06:58]} 5. Bg2 {[%emt 0:00:06]} Nc6 {[%emt 0:02:51]} 6. Nge2 {[%emt 0:00:12]} e6 {[%emt 0:03:36]} 7. O-O {[%emt 0:00:11]} Nge7 {[%emt 0:00:26]} 8. d3 {[%emt 0:00:12]} O-O {[%emt 0:00:56]} 9. Be3 {[%emt 0:00:38]} f5 {[%emt 0:04:01]} 10. f4 {[%emt 0:05:51]} Nd4 {[%emt 0:01:05]} 11. Rb1 {[%emt 0:02:16]} Bd7 {[%emt 0:04:08]} 12. b4 {[%emt 0:03:59]} b6 {[%emt 0:05:00]} 13. bxc5 {[%emt 0:06:57]} Nxe2+ {[%emt 0:07:26]} 14. Nxe2 {[%emt 0:00:21]} bxc5 {[%emt 0:00:47]} 15. d4 {[%emt 0:10:47]} fxe4 {[%emt 0:07:13]} 16. Bxe4 {[%emt 0:01:21]} d5 {[%emt 0:09:14]} 17. Bg2 {[%emt 0:00:22]} Bc6 {[%emt 0:07:47]} 18. dxc5 {[%emt 0:02:15]} dxc4 {[%emt 0:02:35]} 19. Qd6 {[%emt 0:14:39]} Bxg2 {[%emt 0:06:39]} 20. Qxe6+ {[%emt 0:02:03]} Kh8 {[%emt 0:02:10]} 21. Kxg2 {[%emt 0:00:27]} Qd3 {[%emt 0:01:46]} 22. Bf2 {[%emt 0:10:11]} Nf5 {[%emt 0:01:09]} 23. Rfd1 {[%emt 0:02:33]} Rfe8 {[%emt 0:04:41]} 24. Rxd3 {[%emt 0:01:22]} Rxe6 {[%emt 0:00:32]} 25. Rd2 {[%emt 0:00:23]} c3 {[%emt 0:02:39]} 26. Rc2 {[%emt 0:00:38]} Rc8 {[%emt 0:13:21]} 27. Nxc3 {[%emt 0:02:55]} Bd4 {[%emt 0:00:26]} 28. g4 {[%emt 0:05:11]} Ne3+ {[%emt 0:00:56]} 29. Bxe3 {[%emt 0:00:02]} Rxe3 {[%emt 0:00:59]} 30. Nd5 {[%emt 0:03:32]} Re6 {[%emt 0:01:19]} 31. Rbc1 {[%emt 0:02:15]} h5 {[%emt 0:02:20]} 32. h3 {[%emt 0:01:23]} h4 {[%emt 0:00:50]} 33. c6 {[%emt 0:03:03]} Rd6 {[%emt 0:00:25]} 34. Ne7 {[%emt 0:02:09]} Rc7 {[%emt 0:00:12]} 35. f5 {[%emt 0:00:09]} Be3 {[%emt 0:01:00]} 36. Nxg6+ {[%emt 0:00:44]} Kg7 {[%emt 0:00:12]} 37. Re1 {[%emt 0:00:48]} Bg5 {[%emt 0:00:26]} 38. Ne5 {[%emt 0:09:36]} Bf6 {[%emt 0:00:20]} 39. Ree2 {[%emt 0:00:35]} 1-0

[Event "1st Cyprus Chess Tournament 2019"]
[Site "Larnaca"]
[Date "2019.10.27"]
[Round "4.8"]
[White "Terentiev, Sergei"]
[Black "Antel, Umit"]
[Result "1-0"]
[ECO "D40"]
[WhiteElo "2285"]
[BlackElo "1836"]
[Annotator "NA"]
[PlyCount "71"]
[EventDate "2019.10.25"]
[EventType "swiss"]
[EventCountry "CYP"]
[SourceTitle "playchess.com"]
[Source "ChessBase"]
[SourceQuality "1"]
[TimeControl "5400+30"]

1. c4 {[%emt 0:00:00]} Nf6 {[%emt 0:03:09]} 2. Nf3 {[%emt 0:00:14]} e6 {[%emt 0:00:08]} 3. a3 {[%emt 0:00:29]} d5 {[%emt 0:01:01]} 4. e3 {[%emt 0:00:10]} c5 {[%emt 0:03:52]} 5. d4 {[%emt 0:00:09]} Nc6 {[%emt 0:00:42]} 6. dxc5 {[%emt 0:00:08]} Bxc5 {[%emt 0:01:28]} 7. b4 {[%emt 0:00:09]} Be7 {[%emt 0:00:10]} 8. Bb2 {[%emt 0:00:59]} O-O {[%emt 0:00:54]} 9. Nc3 {[%emt 0:00:23]} a6 {[%emt 0:01:22]} 10. cxd5 {[%emt 0:02:51]} Nxd5 {[%emt 0:00:48]} 11. Nxd5 {[%emt 0:01:20]} exd5 {[%emt 0:00:55]} 12. Be2 {[%emt 0:00:14]} Be6 {[%emt 0:01:30]} 13. O-O {[%emt 0:00:14]} Bf6 {[%emt 0:00:17]} 14. Qd2 {[%emt 0:00:23]} Rc8 {[%emt 0:11:22]} 15. Rfd1 {[%emt 0:00:31]} Bxb2 {[%emt 0:00:29]} 16. Qxb2 {[%emt 0:00:10]} b5 {[%emt 0:01:56]} 17. e4 {[%emt 0:11:42]} Ne7 {[%emt 0:06:29]} 18. Nd4 {[%emt 0:01:31]} Qb6 {[%emt 0:01:43]} 19. Nxe6 {[%emt 0:02:23]} Qxe6 {[%emt 0:18:24]} 20. exd5 {[%emt 0:01:25]} Nxd5 {[%emt 0:00:14]} 21. Bf3 {[%emt 0:00:28]} Nc3 {[%emt 0:04:11]} 22. Re1 {[%emt 0:14:06]} Qg6 {[%emt 0:04:36]} 23. Rac1 {[%emt 0:06:08]} Na4 {[%emt 0:02:19]} 24. Qe5 {[%emt 0:01:52]} Rxc1 {[%emt 0:08:45]} 25. Rxc1 {[%emt 0:00:34]} Qd3 {[%emt 0:00:12]} 26. Qe3 {[%emt 0:00:28]} Qd7 {[%emt 0:14:18]} 27. Rd1 {[%emt 0:06:32]} Qc7 {[%emt 0:04:04]} 28. Qd4 {[%emt 0:03:16]} g6 {[%emt 0:04:14]} 29. h4 {[%emt 0:00:02]} h5 {[%emt 0:00:36]} 30. Qf6 {[%emt 0:00:38]} Nb6 {[%emt 0:02:46]} 31. g3 {[%emt 0:00:23]} Rb8 {[%emt 0:01:04]} 32. Rd6 {[%emt 0:00:43]} Qc1+ {[%emt 0:00:47]} 33. Kg2 {[%emt 0:00:45]} Nc4 {[%emt 0:00:21]} 34. Rd7 {[%emt 0:00:09]} Rf8 {[%emt 0:01:13]} 35. Bd5 {[%emt 0:00:02]} Ne3+ {[%emt 0:00:40]} 36. fxe3 {[%emt 0:00:17]} 1-0

[Event "1st Cyprus Chess Tournament 2019"]
[Site "Larnaca"]
[Date "2019.10.27"]
[Round "4.10"]
[White "Biljanic, Ljubomir"]
[Black "Georgiou, Andreas"]
[Result "1-0"]
[ECO "A55"]
[WhiteElo "2241"]
[BlackElo "1797"]
[Annotator "NA"]
[PlyCount "101"]
[EventDate "2019.10.25"]
[EventType "swiss"]
[EventCountry "CYP"]
[SourceTitle "playchess.com"]
[Source "ChessBase"]
[SourceQuality "1"]
[TimeControl "5400+30"]

1. d4 d6 2. c4 Nd7 3. Nc3 e5 4. Nf3 Ngf6 5. e4 Be7 6. Be2 O-O 7. O-O c6 8. Re1 Qc7 9. Bf1 b6 10. Bg5 h6 11. Bh4 Bb7 12. Rc1 Rac8 13. a3 a6 14. d5 cxd5 15. cxd5 Qb8 16. b4 Rc7 17. Bd3 Rfc8 18. Qd2 b5 19. a4 bxa4 20. Nxa4 Rxc1 21. Rxc1 Rxc1+ 22. Qxc1 g5 23. Bg3 Qc8 24. Qxc8+ Bxc8 25. Nd2 Nh5 26. Nc4 Kf8 27. Ncb6 Nxb6 28. Nxb6 Bb7 29. Nd7+ Ke8 30. Nb8 Kd8 31. Bxa6 Bxa6 32. Nxa6 Kc8 33. b5 Kb7 34. Nb4 Kb6 35. Nc6 Bf8 36. f3 Nxg3 37. hxg3 Kxb5 38. Kh2 Kb6 39. Nd8 f6 40. Ne6 Be7 41. Kh3 h5 42. Ng7 Kc5 43. Nxh5 f5 44. exf5 Kxd5 45. f6 Bd8 46. Kg4 Ke6 47. Kxg5 d5 48. Kg6 d4 49. Ng7+ Kd5 50. Nf5 Ke6 51. f7 {[%emt 0:25:00]} 1-0

[Event "1st Cyprus Chess Tournament 2019"]
[Site "Larnaca"]
[Date "2019.10.28"]
[Round "5.6"]
[White "Tsyn, Igor"]
[Black "Terentiev, Sergei"]
[Result "1-0"]
[ECO "B38"]
[WhiteElo "2129"]
[BlackElo "2285"]
[Annotator "RC"]
[PlyCount "65"]
[EventDate "2019.10.25"]
[EventType "swiss"]
[EventCountry "CYP"]
[SourceTitle "playchess.com"]
[Source "ChessBase"]
[SourceQuality "1"]
[TimeControl "5400+30"]

1. e4 {[%emt 0:00:00]} c5 {[%emt 0:00:11]} 2. Nf3 {[%emt 0:00:00]} g6 {[%emt 0:00:08]} 3. d4 {[%emt 0:13:04]} cxd4 {[%emt 0:00:23]} 4. Nxd4 {[%emt 0:00:04]} Bg7 {[%emt 0:00:10]} 5. c4 {[%emt 0:00:21]} Nc6 {[%emt 0:05:09]} 6. Be3 {[%emt 0:04:38]} Nf6 {[%emt 0:00:13]} 7. Nc3 {[%emt 0:19:27]} O-O {[%emt 0:00:28]} 8. Be2 {[%emt 0:01:51]} b6 {[%emt 0:00:27]} 9. O-O {[%emt 0:01:28]} Bb7 {[%emt 0:00:08]} 10. f3 {[%emt 0:03:35]} Nh5 {[%emt 0:00:09]} 11. Nc2 {[%emt 0:03:48]} f5 {[%emt 0:06:34]} 12. exf5 {[%emt 0:31:13]} gxf5 {[%emt 0:00:50]} 13. Qd2 {[%emt 0:00:09]} e6 {[%emt 0:08:34]} 14. Rad1 {[%emt 0:00:50]} Rf7 {[%emt 0:01:05]} 15. Nb5 {[%emt 0:03:07]} f4 {[%emt 0:01:49]} 16. Bf2 {[%emt 0:00:07]} d5 {[%emt 0:00:10]} 17. cxd5 {[%emt 0:00:45]} exd5 {[%emt 0:00:08]} 18. Qxd5 {[%emt 0:00:38]} Qxd5 {[%emt 0:10:02]} 19. Rxd5 {[%emt 0:00:04]} Ne5 {[%emt 0:00:09]} 20. Rd2 {[%emt 0:03:09]} Rd7 {[%emt 0:04:48]} 21. Rxd7 {[%emt 0:02:22]} Nxd7 {[%emt 0:00:10]} 22. Rd1 {[%emt 0:00:35]} Nhf6 {[%emt 0:00:11]} 23. Nd6 {[%emt 0:01:08]} Bc6 {[%emt 0:01:34]} 24. Bc4+ {[%emt 0:01:05]} Kf8 {[%emt 0:00:09]} 25. Nd4 {[%emt 0:02:16]} Bd5 {[%emt 0:00:03]} 26. Bxd5 {[%emt 0:02:02]} Nxd5 {[%emt 0:00:10]} 27. N4f5 {[%emt 0:01:32]} N7f6 {[%emt 0:04:02]} 28. Bd4 {[%emt 0:01:13]} Rd8 {[%emt 0:02:22]} 29. Bxf6 {[%emt 0:00:36]} Nxf6 {[%emt 0:03:48]} 30. Nxg7 {[%emt 0:00:04]} Rd7 {[%emt 0:00:25]} 31. Ngf5 {[%emt 0:00:40]} h5 {[%emt 0:00:26]} 32. Re1 {[%emt 0:00:14]} Kg8 {[%emt 0:00:11]} 33. Re7 {[%emt 0:00:55]} 1-0

[Event "1st Cyprus Chess Tournament 2019"]
[Site "Larnaca"]
[Date "2019.10.28"]
[Round "5.7"]
[White "Lornye, Pylyp"]
[Black "Dermatopoulos, Konstantinos"]
[Result "1-0"]
[ECO "A07"]
[WhiteElo "2284"]
[BlackElo "1992"]
[Annotator "RC"]
[PlyCount "63"]
[EventDate "2019.10.25"]
[EventType "swiss"]
[EventCountry "CYP"]
[SourceTitle "playchess.com"]
[Source "ChessBase"]
[SourceQuality "1"]
[TimeControl "5400+30"]

1. Nf3 {[%emt 0:00:00]} d5 {[%emt 0:00:00]} 2. g3 {[%emt 0:00:00]} Bg4 {[%emt 0:00:00]} 3. Bg2 {[%emt 0:00:08]} c6 {[%emt 0:00:00]} 4. O-O {[%emt 0:00:52]} Nd7 {[%emt 0:00:09]} 5. h3 {[%emt 0:00:49]} Bh5 {[%emt 0:00:16]} 6. d3 {[%emt 0:00:35]} Ngf6 {[%emt 0:00:23]} 7. Nbd2 {[%emt 0:00:40]} e5 {[%emt 0:01:13]} 8. e4 {[%emt 0:03:23]} Bd6 {[%emt 0:00:14]} 9. Qe1 {[%emt 0:01:28]} dxe4 {[%emt 0:00:06]} 10. dxe4 {[%emt 0:00:29]} O-O {[%emt 0:02:48]} 11. Nh4 {[%emt 0:01:06]} Re8 {[%emt 0:00:15]} 12. Nc4 {[%emt 0:02:25]} Bf8 {[%emt 0:00:21]} 13. a4 {[%emt 0:01:20]} Qc7 {[%emt 0:08:20]} 14. Kh1 {[%emt 0:27:33]} Nc5 {[%emt 0:29:15]} 15. Bg5 {[%emt 0:13:54]} Nfd7 {[%emt 0:01:19]} 16. Be3 {[%emt 0:04:47]} f6 {[%emt 0:04:10]} 17. Nd2 {[%emt 0:05:21]} Bf7 {[%emt 0:01:54]} 18. f4 {[%emt 0:01:24]} Nb6 {[%emt 0:09:21]} 19. b3 {[%emt 0:00:50]} Ne6 {[%emt 0:01:21]} 20. a5 {[%emt 0:10:10]} Nd7 {[%emt 0:01:20]} 21. Nc4 {[%emt 0:00:26]} Nd4 {[%emt 0:04:53]} 22. Qf2 {[%emt 0:00:54]} Ne6 {[%emt 0:13:50]} 23. Rad1 {[%emt 0:07:08]} exf4 {[%emt 0:06:15]} 24. gxf4 {[%emt 0:00:06]} Nec5 {[%emt 0:00:08]} 25. Rd4 {[%emt 0:04:11]} Nxe4 {[%emt 0:07:00]} 26. Rxe4 {[%emt 0:00:41]} Bd5 {[%emt 0:02:01]} 27. Rxe8 {[%emt 0:00:20]} Rxe8 {[%emt 0:00:06]} 28. Rd1 {[%emt 0:01:52]} Bf7 {[%emt 0:00:59]} 29. Nf5 {[%emt 0:00:16]} Bh5 {[%emt 0:04:27]} 30. Bf3 {[%emt 0:00:33]} Bxf3+ {[%emt 0:00:05]} 31. Qxf3 {[%emt 0:00:03]} Nc5 {[%emt 0:01:05]} 32. Nfd6 {[%emt 0:00:31]} 1-0